Workbook

Sheet wykres
I5: parametry gazu
C6: V, dm3 | D6: V, m3 | G6: =CC205 -> p, MPa
B7: skok V | C7: 20 | D7: =(D9-D8)/20 -> 0.009 | F7: nRT = | G7: =J7*J9*J8 -> 49860 | I7: liczba moli, n | J7: 20 | K7: mol
B8: Vp, dm3 | C8: =J13 -> 20 | D8: =C8/1000 -> 0.020 | F8: dzielnik | G8: =IF($CC$210=1,1,IF($CC$210=2,1000,IF($CC$210=3,1000000))) -> 1000000 | I8: temperatura, T | J8: 300 | K8: K
B9: Vk, dm3 | C9: =J14 -> 200 | D9: =C9/1000 -> 0.200 | G9: =$G$7/($G$8*D8) -> 2.49 | I9: stała gazowa, R | J9: 8.31 | K9: Jmol -1 K-1
G10: =$G$7/($G$8*D12) -> 1.72
D11: =D8 -> 0.020 | G11: 1.31 | I11: jednostka ciśnienia
D12: =$D$8+$D$7 -> 0.029 | G12: 1.06
D13: =D12+$D$7 -> 0.038 | G13: 0.89 | I13: objętość początkowa, Vp | J13: 20 | K13: dm3
D14: 0.047 | G14: 0.77 | I14: objętość końcowa, Vk | J14: 200 | K14: dm3
D15: 0.056 | G15: 0.67
D16: 0.065 | G16: 0.60
D17: 0.074 | G17: 0.54
D18: 0.083 | G18: 0.49
D19: 0.092 | G19: 0.45
D20: 0.101 | G20: 0.42
D21: 0.110 | G21: 0.39
D22: 0.119 | G22: 0.36
D23: 0.128 | G23: 0.34
D24: 0.137 | G24: 0.32
D25: 0.146 | G25: 0.30 | I25: parametry osi wykresu
D26: 0.155 | G26: 0.29
D27: 0.164 | G27: 0.27 | I27: oś pozioma
D28: 0.173 | G28: 0.26 | I28: minimum | J28: 0.01
D29: 0.182 | G29: 0.25 | I29: jednostka główna | J29: 0.05
D30: 0.191 | G30: 0.24 | I30: jednostka pomocnicza | J30: 0.01
D31: 0.200 | G31: 0.23
D32: 0.209 | G32: 0.22 | I32: oś pionowa
D33: 0.218 | G33: 0.21 | I33: minimum | J33: 0.1
D34: 0.227 | G34: 0.20 | I34: jednostka główna | J34: 0.4
D35: 0.236 | G35: 0.20 | I35: jednostka pomocnicza | J35: 0.04
D36: 0.245 | G36: 0.19
D37: 0.254 | G37: 0.18
D38: 0.263 | G38: 0.18
D39: 0.272 | G39: 0.17
D40: 0.281 | G40: 0.17
D41: 0.290 | G41: =$G$7/($G$8*D43) -> 0.16
D42: 0.299 | G42: 0.16
D43: =D42+$D$7 -> 0.308 | G43: 0.15
D44: 0.317 | G44: 0.15
D45: 0.326 | G45: 0.14
D46: 0.335 | G46: 0.14
D47: 0.344 | G47: 0.14
D48: 0.353 | G48: 0.13
D49: 0.362 | G49: 0.13
D50: 0.371 | G50: 0.13
D51: 0.380 | G51: 0.13
D52: 0.389 | G52: 0.12
D53: 0.398 | G53: 0.12
D54: 0.407 | G54: 0.12
D55: 0.416 | G55: 0.11
D56: 0.425 | G56: 0.11
D57: 0.434 | G57: 0.11
D58: 0.443 | G58: 0.11
D59: 0.452 | G59: 0.11
D60: 0.461 | G60: 0.10
D61: 0.470 | G61: 0.10
D62: 0.479 | G62: 0.10
D63: 0.488 | G63: 0.10
D64: 0.497 | G64: 0.10
D65: 0.506 | G65: 0.10
D66: 0.515 | G66: 0.09
D67: 0.524 | G67: 0.09
D68: 0.533 | G68: 0.09
D69: 0.542 | F69: max-min | G69: =G9-G68 -> 2.40
D70: 0.551 | G70: =G9-G68 -> 2.40
D71: 0.560
D72: 0.569
D73: 0.578 | F73: mnożnik zależny od jednostki | G73: =IF(G8=1,10,IF(G8=1000,10,IF(G8=1000000,1,1))) -> 1
D74: 0.587
D75: 0.596
D76: 0.605
D77: 0.614
D78: 0.623
D79: 0.632
D80: 0.641
D81: 0.650
D82: 0.659
D83: 0.668
D84: 0.677
D85: 0.686
D86: 0.695
D87: 0.704
D88: 0.713
D89: 0.722
D90: 0.731
D91: 0.740
D92: 0.749
D93: 0.758
D94: 0.767
D95: 0.776
D96: 0.785
D97: 0.794
D98: 0.803
D99: 0.812
D100: 0.821
D101: 0.830
D102: 0.839
D103: 0.848
D104: 0.857
D105: 0.866
D106: 0.875
D107: =D106+$D$7 -> 0.884
D108: 0.893
D109: 0.902
D110: 0.911
C113: sug. | D113: =(D110-D11) -> 0.891
CC200: jednostka ciśnienia
CC201: p, Pa
CC202: p, kPa
CC203: p, MPa
CC205: =IF(wykres!$CC$210=1,wykres!$CC$201,IF(wykres!$CC$210=2,wykres!$CC$202,IF(wykres!$CC$210=3,wykres!$CC$203))) -> p, MPa
CC207: Pa
CC208: kPa
CC209: MPa
CC210: 3
